Workbook

Sheet Cover page
C8: Economic saving and GHG mitigation emisions tool For the Implementation of Ecodriving Program
E12: July 2021
E13: Lima, Peru
C17: Product developed within the framework of TRANSfer Peru project and the consultancy "Ecodriving MRV Toolkit" for the economic and GHG evaluation of the implementation of Ecodriving program. Carried out by Proactive Engenieering for the Ministry of Transport and Communication and Deutsche Gesellschaft für Internationale Zusammenarbeit (GIZ).
D29: Author: Luis Felipe Villareal

Sheet Overview SP
B4: 1. Secciones de la herramienta | P4: A. Sección: información de la flota | AK4: B. Sección: Gestion de la ruta y combustible | BF4: C. Sección: Indicadores de desempeño

Sheet Overview EN
B4: 1. Toolkit sections | P4: A. Section: Fleet Information | AK4: B. Section: Fuel and route management | BF4: C. Section: Key Performance indicators

Sheet Inicio
A41: ® Proactive Engineering S.A.C.

Sheet Conductores
B1: Fecha de Registro | C1: Apellidos y Nombres | D1: Nacionalidad | E1: Número de Documento | F1: Fecha de Vencimiento de Documento | G1: Código de Conductor | H1: Categoría de Licencia de Conducir | I1: Número de Licencia de Conducir | J1: Fecha de vencimiento de Licencia de Conducir | K1: Licencias especiales | L1: Años de Experiencia como condcutor
B2: 2021-07-03T10:50:47 | C2: MUÑOZ LOPEZ LUIS ALFREDO | D2: VENEZOLANO | E2: 002988274 | F2: 21/01/2024 | H2: AIII-C | I2: Q002988274 | J2: 26/08/2025 | L2: Mayor o igual a 10 años y menor a 15 años
B3: 2021-07-03T10:50:59 | C3: TAIPE SILVERA ROLANDO JAIME | D3: PERUANO | E3: 44433255 | F3: 07/10/2027 | H3: AIII-C | I3: Q44433255 | J3: 15/08/2022 | L3: Mayor o igual a 5 años y menor a 10 años
B4: 2021-07-03T10:51:10 | C4: ZORRILLA REDUCIENDO SANTIAGO FLORENCIO | D4: PERUANO | E4: 32302732 | F4: 19/10/2026 | H4: AIII-C | I4: Q32302732 | J4: 03/06/2024 | L4: Mayor o igual a 5 años y menor a 10 años
B5: 2021-07-03T10:51:18 | C5: BARRIENTOS GARAY GERMAN | D5: PERUANO | E5: 10203204 | F5: 12/07/2026 | H5: AIII-C | I5: Q10203204 | J5: 07/01/2023 | L5: Mayor a 15 años
B6: 2021-07-03T10:51:28 | C6: RUDECINDO ROSALES ALEJANDRO | D6: PERUANO | E6: 28781874 | F6: 11/11/2026 | H6: AIII-C | I6: Q25781874 | J6: 11/05/2022 | L6: Mayor o igual a 10 años y menor a 15 años
B7: 2021-07-03T10:51:38 | C7: VEGA SILVA CARLOS ENRIQUE | D7: PERUANO | E7: 25781874 | F7: 02/10/2026 | H7: AIII-C | I7: Q25781874 | J7: 13/03/2022 | L7: Mayor a 15 años
B8: 2021-07-03T10:53:40 | C8: AVILA PERALTA LUIS ANGEL | D8: PERUANO | E8: 40733972 | F8: 11/03/2028 | H8: AIII-C | I8: Q40733972 | J8: 20/02/2020 | L8: Menor a 5 años

Sheet Vehículos
B1: Fecha de Registro | C1: Fecha de adquisicón | D1: Placa de vehículo | E1: Carrocería | F1: Categoría | G1: Marca | H1: Modelo | I1: Año de fabricación | J1: Peso bruto | K1: Peso neto | L1: Carga útil | M1: Bicombustible | N1: Combustible 1 | O1: Combustible 2 | P1: Recorrido actual (Km) | Q1: Valor de adquisición (Incl. IGV)
B2: 2021-07-03T09:53:54 | C2: 2014-10-01 | D2: B1Q809 | E2: Remolque | F2: N3 | G2: FREIGHTLINER | H2: M2 112 | I2: 2008 | J2: 23.587 | K2: 7 | L2: 16.587 | M2: No | N2: Diesel B5
B3: 2021-07-03T10:00:47 | C3: 25/04/2014 | D3: P2M891 | E3: Remolque | F3: N3 | G3: VOLVO | H3: F12 | I3: 1993 | J3: 25 | K3: 7 | L3: 18 | M3: No | N3: Diesel B5
B4: 2021-07-03T10:24:42 | C4: 15/06/2015 | D4: C1K756 | E4: Remolque | F4: N3 | G4: FREIGHTLINER | H4: CL120 | I4: 2012 | J4: 27.21 | K4: 8.19 | L4: 19.02 | M4: No | N4: Diesel B5
B5: 2021-07-03T10:35:50 | C5: 13/11/2014 | D5: ABR841 | E5: Remolque | F5: N3 | G5: SCANIA | H5: P410 A6X4 | I5: 2014 | J5: 26.5 | K5: 9.34 | L5: 17.16 | M5: No | N5: Diesel B5
B6: 2021-07-03T10:41:08 | C6: 27/08/2019 | D6: B8W786 | E6: Remolque | F6: N3 | G6: INTERNATIONAL | H6: 8600 SBA 6X4 | I6: 2013 | J6: 23.585 | K6: 7.185 | L6: 16.4 | M6: No | N6: Diesel B5
B7: 2021-07-03T10:46:25 | C7: 09/07/2018 | D7: F1O746 | E7: Remolque | F7: N3 | G7: FREIGHTLINER | H7: FLD11264ST | I7: 1996 | J7: 25 | K7: 6.67 | L7: 18.33 | M7: No | N7: Diesel B5
B8: 2021-07-03T10:49:11 | C8: 27/08/2019 | D8: B8T720 | E8: Remolque | F8: N3 | G8: INTERNATIONAL | H8: 8600 SBA 6X4 | I8: 2013 | J8: 23.585 | K8: 7.185 | L8: 16.4 | M8: No | N8: Diesel B5

Sheet Recorrido
B1: Fecha de Registro | C1: Placa de vehículo | D1: Placa de vehículo no motorizado | E1: Conductor(a) | F1: Unidad de negocio | G1: Peso de la carga transportada | H1: Fecha Partida | I1: Hora Partida | J1: Kilometraje Partida | K1: Lugar Partida | L1: Fecha Destino | M1: Hora Destino | N1: Kilometraje Destino | O1: Lugar Destino | P1: Recorrido
B2: 2021-07-12T11:52:32 | C2: B8T720 | E2: MUÑOZ LOPEZ LUIS ALFREDO | G2: 31.2 | H2: 2021-06-24 | J2: 0 | K2: Huacho | L2: 2021-06-25 | O2: Ate | P2: 157.4
B3: 2021-07-12T11:54:53 | C3: B8W786 | E3: TAIPE SILVERA ROLANDO JAIME | G3: 30 | H3: 2021-06-24 | J3: 0 | K3: OQUENDO | L3: 2021-06-25 | O3: LURIN | P3: 132
B4: 2021-07-12T11:55:36 | C4: F1O746 | E4: RUDECINDO ROSALES ALEJANDRO | G4: 30 | H4: 2021-06-24 | J4: 0 | K4: OQUENDO | L4: 2021-06-25 | O4: LURIN | P4: 54.5
B5: 2021-07-12T11:56:30 | C5: P2M891 | E5: BARRIENTOS GARAY GERMAN | G5: 16 | H5: 2021-06-24 | J5: 0 | K5: OQUENDO | L5: 2021-06-24 | O5: OQUENDO | P5: 32.7
B6: 2021-07-12T11:57:12 | C6: P2M891 | E6: BARRIENTOS GARAY GERMAN | G6: 31 | H6: 2021-06-24 | J6: 0 | K6: OQUENDO | L6: 2021-06-25 | O6: CHORRILLOS | P6: 32.4
B7: 2021-07-12T11:58:05 | C7: ABR841 | E7: AVILA PERALTA LUIS ANGEL | G7: 30.42 | H7: 2021-06-24 | J7: 0 | K7: HUACHO | L7: 2021-06-24 | O7: ATE | P7: 157.4
B8: 2021-07-12T11:58:59 | C8: C1K756 | E8: ZORRILLA REDUCIENDO SANTIAGO FLORENCIO | G8: 31.2 | H8: 2021-06-24 | J8: 0 | K8: HUACHO | L8: 2021-06-25 | O8: ATE | P8: 151.7
B9: 2021-07-12T12:01:48 | C9: B8T720 | E9: MUÑOZ LOPEZ LUIS ALFREDO | G9: 31.2 | H9: 2021-06-25 | J9: 0 | K9: HUACHO | L9: 2021-06-26 | O9: V.E.S. | P9: 169.3
B10: 2021-07-12T12:02:49 | C10: F1O746 | E10: RUDECINDO ROSALES ALEJANDRO | G10: 29 | H10: 2021-06-25 | J10: 0 | K10: HUACHIPA | L10: 2021-06-28 | O10: BARRANCA | P10: 203
B11: 2021-07-12T12:03:21 | C11: P2M891 | E11: BARRIENTOS GARAY GERMAN | G11: 30 | H11: 2021-06-25 | J11: 0 | K11: OQUENDO | L11: 2021-06-25 | O11: OQUENDO | P11: 32.7
B12: 2021-07-12T12:03:53 | C12: C1K756 | E12: ZORRILLA REDUCIENDO SANTIAGO FLORENCIO | G12: 30 | H12: 2021-06-25 | J12: 0 | K12: HUACHO | L12: 2021-06-26 | O12: OQUENDO | P12: 124.2
B13: 2021-07-12T12:06:25 | C13: B1Q809 | E13: VEGA SILVA CARLOS ENRIQUE | G13: 31.2 | H13: 2021-06-26 | J13: 0 | K13: HUACHO | L13: 2021-06-28 | O13: CERCADO DE LIMA | P13: 258.3
B14: 2021-07-12T12:07:09 | C14: ABR841 | E14: AVILA PERALTA LUIS ANGEL | G14: 30.16 | H14: 2021-06-26 | J14: 0 | K14: HUACHO | L14: 2012-06-28 | O14: BOCANEGRA | P14: 135.7
B15: 2021-07-12T12:07:37 | C15: B8W786 | E15: TAIPE SILVERA ROLANDO JAIME | G15: 30 | H15: 2021-06-26 | J15: 0 | K15: HUACHO | L15: 2021-06-28 | O15: PUENTE PIEDRA | P15: 266.3
B16: 2021-07-12T12:08:06 | C16: C1K756 | E16: ZORRILLA REDUCIENDO SANTIAGO FLORENCIO | G16: 31.2 | H16: 2021-06-26 | J16: 0 | K16: HUACHO | L16: 2021-06-27 | O16: PRODUCTORES | P16: 142.5
B17: 2021-07-12T12:09:47 | C17: P2M891 | E17: BARRIENTOS GARAY GERMAN | G17: 30 | H17: 2021-06-28 | J17: 0 | K17: OQUENDO | L17: 2021-06-28 | O17: OQUENDO | P17: 32.7
B18: 2021-07-12T12:10:12 | C18: C1K756 | E18: ZORRILLA REDUCIENDO SANTIAGO FLORENCIO | G18: 16 | H18: 2021-06-28 | J18: 0 | K18: OQUENDO | L18: 2021-06-28 | O18: OQUENDO | P18: 32.3
B19: 2021-07-12T12:10:57 | C19: P2M891 | E19: BARRIENTOS GARAY GERMAN | G19: 8 | H19: 2021-06-28 | J19: 0 | K19: VENTANILLA | L19: 2021-06-29 | O19: BOCANEGRA | P19: 92.4
B20: 2021-07-12T12:11:37 | C20: B8T720 | E20: MUÑOZ LOPEZ LUIS ALFREDO | G20: 8 | H20: 2021-06-28 | J20: 0 | K20: VENTANILLA | L20: 2021-06-29 | O20: BOCANEGRA | P20: 92.4
B21: 2021-07-12T12:13:33 | C21: F1O746 | E21: RUDECINDO ROSALES ALEJANDRO | G21: 30 | H21: 2021-06-28 | J21: 0 | K21: HUACHO | L21: 2021-06-29 | O21: OQUENDO | P21: 288.4
B22: 2021-07-12T12:14:49 | C22: B8W786 | E22: TAIPE SILVERA ROLANDO JAIME | G22: 17.96 | H22: 2021-06-29 | J22: 0 | K22: HUACHIPA | L22: 2021-06-29 | O22: ATE | P22: 31.3
B23: 2021-07-12T12:15:22 | C23: B8T720 | E23: MUÑOZ LOPEZ LUIS ALFREDO | G23: 15.02 | H23: 2021-06-29 | J23: 0 | K23: HUACHIPA | L23: 2021-06-29 | O23: COMAS | P23: 153
B24: 2021-07-12T12:22:41 | C24: F1O746 | E24: RUDECINDO ROSALES ALEJANDRO | G24: 30 | H24: 2021-06-30 | J24: 0 | K24: OQUENDO | L24: 2021-07-01 | O24: CHORRILLOS | P24: 32.4
B25: 2021-07-12T12:23:22 | C25: P2M891 | E25: BARRIENTOS GARAY GERMAN | G25: 16.31 | H25: 2021-06-30 | J25: 0 | K25: HUACHIPA | L25: 2021-06-30 | O25: CALLAO | P25: 27.2
B26: 2021-07-12T12:23:51 | C26: C1K756 | E26: ZORRILLA REDUCIENDO SANTIAGO FLORENCIO | G26: 27 | H26: 2021-06-30 | J26: 0 | K26: HUACHIPA | L26: 2021-07-01 | O26: HUARAL | P26: 95.8
B27: 2021-07-12T12:24:17 | C27: ABR841 | E27: AVILA PERALTA LUIS ANGEL | G27: 29 | H27: 2021-06-30 | J27: 0 | K27: HUACHIPA | L27: 2021-07-01 | O27: BARRANCA | P27: 203
B28: 2021-07-12T12:24:42 | C28: B8T720 | E28: MUÑOZ LOPEZ LUIS ALFREDO | G28: 8 | H28: 2021-06-30 | J28: 0 | K28: BOCANEGRA | L28: 2021-06-30 | O28: HUACHO | P28: 137.5
B29: 2021-07-12T12:25:02 | C29: B8T720 | E29: MUÑOZ LOPEZ LUIS ALFREDO | G29: 30 | H29: 2021-06-30 | J29: 0 | K29: HUACHO | L29: 2021-07-01 | O29: CALLAO | P29: 138.2
B30: 2021-07-12T12:26:04 | C30: B8W786 | E30: TAIPE SILVERA ROLANDO JAIME | G30: 17.92 | H30: 2021-07-01 | J30: 0 | K30: OQUENDO | L30: 2021-07-02 | O30: CHORRILLOS | P30: 73.7
B31: 2021-07-12T12:26:34 | C31: P2M891 | E31: BARRIENTOS GARAY GERMAN | G31: 30 | H31: 2021-07-01 | J31: 0 | K31: OQUENDO | L31: 2021-07-02 | O31: OQUENDO | P31: 32.7
B32: 2021-07-12T12:27:09 | C32: C1K756 | E32: ZORRILLA REDUCIENDO SANTIAGO FLORENCIO | G32: 30 | H32: 2021-07-01 | J32: 0 | K32: HUACHO | L32: 2021-07-02 | O32: PUENTE PIEDRA | P32: 119.2
B33: 2021-07-12T12:27:34 | C33: ABR841 | E33: AVILA PERALTA LUIS ANGEL | G33: 30 | H33: 2021-07-01 | J33: 0 | K33: HUACHO | L33: 2021-07-02 | O33: CHINCHA | P33: 342
B34: 2021-07-12T12:27:54 | C34: B8T720 | E34: MUÑOZ LOPEZ LUIS ALFREDO | G34: 30 | H34: 2021-07-01 | J34: 0 | K34: OQUENDO | L34: 2021-07-02 | O34: CALLAO | P34: 32.3
B35: 2021-07-12T12:28:49 | C35: F1O746 | E35: RUDECINDO ROSALES ALEJANDRO | G35: 17 | H35: 2021-07-02 | J35: 0 | K35: OQUENDO | L35: 2021-07-02 | O35: OQUENDO | P35: 32.3
B36: 2021-07-12T12:29:08 | C36: F1O746 | E36: RUDECINDO ROSALES ALEJANDRO | G36: 30 | H36: 2021-07-02 | J36: 0 | K36: OQUENDO | L36: 2021-07-02 | O36: OQUENDO | P36: 32.3
B37: 2021-07-12T12:29:32 | C37: C1K756 | E37: ZORRILLA REDUCIENDO SANTIAGO FLORENCIO | G37: 30 | H37: 2021-07-02 | J37: 0 | K37: HUACHO | L37: 2021-07-05 | O37: CHIMBOTE | P37: 290.5
B38: 2021-07-12T12:30:01 | C38: B8W786 | E38: TAIPE SILVERA ROLANDO JAIME | G38: 17.89 | H38: 2021-07-02 | J38: 0 | K38: HUACHIPA | L38: 2021-07-02 | O38: S.J.L. | P38: 7.5
B39: 2021-07-12T12:30:27 | C39: B8W786 | E39: TAIPE SILVERA ROLANDO JAIME | G39: 28.5 | H39: 2021-07-02 | J39: 0 | K39: HUACHO | L39: 2021-07-03 | O39: OQUENDO | P39: 288.4
B40: 2021-07-12T12:30:54 | C40: B8T720 | E40: MUÑOZ LOPEZ LUIS ALFREDO | G40: 7 | H40: 2021-07-02 | J40: 0 | K40: PUENTE NUEVO | L40: 2021-07-03 | O40: BOCANEGRA | P40: 14
B41: 2021-07-12T12:31:18 | C41: P2M891 | E41: BARRIENTOS GARAY GERMAN | G41: 20 | H41: 2021-07-02 | J41: 0 | K41: OQUENDO | L41: 2021-07-03 | O41: LURIN | P41: 58.5
B42: 2021-07-12T12:31:55 | C42: ABR841 | E42: AVILA PERALTA LUIS ANGEL | G42: 29 | H42: 2021-07-02 | J42: 0 | K42: HUACHIPA | L42: 2021-07-03 | O42: BARRANCA | P42: 203
B43: 2021-07-12T12:33:04 | C43: B1Q809 | E43: VEGA SILVA CARLOS ENRIQUE | G43: 30 | H43: 2021-07-03 | J43: 0 | K43: HUACHO | L43: 2021-07-05 | O43: PUENTE PIEDRA | P43: 216.9
B44: 2021-07-12T12:33:27 | C44: B8T720 | E44: MUÑOZ LOPEZ LUIS ALFREDO | G44: 20 | H44: 2021-07-03 | J44: 0 | K44: OQUENDO | L44: 2021-07-05 | O44: ATE | P44: 37.7
B45: 2021-07-12T12:33:50 | C45: ABR841 | E45: AVILA PERALTA LUIS ANGEL | G45: 30.34 | H45: 2021-07-03 | J45: 0 | K45: HUACHO | L45: 2021-07-05 | O45: BOCANEGRA | P45: 135.7
B46: 2021-07-12T12:34:50 | C46: B1Q809 | E46: RUDECINDO ROSALES ALEJANDRO | G46: 30 | H46: 2021-07-05 | J46: 0 | K46: OQUENDO | L46: 2021-07-06 | O46: CALLAO | P46: 40.9
B47: 2021-07-12T12:35:17 | C47: B8T720 | E47: MUÑOZ LOPEZ LUIS ALFREDO | G47: 30 | H47: 2021-07-05 | J47: 0 | K47: OQUENDO | L47: 2021-07-06 | O47: OQUENDO | P47: 32.3
B48: 2021-07-12T12:35:43 | C48: B8W786 | E48: TAIPE SILVERA ROLANDO JAIME | G48: 17.87 | H48: 2021-07-05 | J48: 0 | K48: HUACHIPA | L48: 2021-07-06 | O48: INDEPENDENCIA | P48: 28.4
B49: 2021-07-12T12:38:46 | C49: B8W786 | E49: TAIPE SILVERA ROLANDO JAIME | G49: 17.8 | H49: 2021-07-06 | J49: 0 | K49: CHORRILLOS | L49: 2021-07-07 | O49: OQUENDO | P49: 42
B50: 2021-07-12T12:39:14 | C50: ABR841 | E50: AVILA PERALTA LUIS ANGEL | G50: 29.5 | H50: 2021-07-06 | J50: 0 | K50: HUACHO | L50: 2021-07-07 | O50: OQUENDO | P50: 288.4
B51: 2021-07-12T12:39:47 | C51: P2M891 | E51: BARRIENTOS GARAY GERMAN | G51: 16.18 | H51: 2021-07-06 | J51: 0 | K51: HUACHIPA | L51: 2021-07-06 | O51: CALLAO | P51: 27.2
B52: 2021-07-12T12:40:11 | C52: C1K756 | E52: ZORRILLA REDUCIENDO SANTIAGO FLORENCIO | G52: 30 | H52: 2021-07-06 | J52: 0 | K52: HUACHO | L52: 2021-07-06 | O52: OQUENDO | P52: 130.3
B53: 2021-07-12T12:40:33 | C53: B8T720 | E53: MUÑOZ LOPEZ LUIS ALFREDO | G53: 30 | H53: 2021-07-06 | J53: 0 | K53: CALLAO | L53: 2021-07-06 | O53: CALLAO | P53: 31.4
B54: 2021-07-12T12:40:53 | C54: B8T720 | E54: MUÑOZ LOPEZ LUIS ALFREDO | G54: 28 | H54: 2021-07-06 | J54: 0 | K54: HUACHIPA | L54: 2021-07-07 | O54: HUARAL | P54: 165.3
B55: 2021-07-12T12:41:19 | C55: B1Q809 | E55: VEGA SILVA CARLOS ENRIQUE | G55: 28 | H55: 2021-07-06 | J55: 0 | K55: CALLAO | L55: 2021-07-07 | O55: BARRANCA | P55: 242.3
B56: 2021-07-12T12:41:41 | C56: B8W786 | E56: TAIPE SILVERA ROLANDO JAIME | G56: 17.87 | H56: 2021-07-06 | J56: 0 | K56: HUACHIPA | L56: 2021-07-06 | O56: SURCO | P56: 37.9
B57: 2021-07-12T12:42:35 | C57: B1Q809 | E57: RUDECINDO ROSALES ALEJANDRO | G57: 30 | H57: 2021-07-07 | J57: 0 | K57: HUACHO | L57: 2021-07-08 | O57: OQUENDO | P57: 288.4
B58: 2021-07-12T12:43:09 | C58: B8W786 | E58: TAIPE SILVERA ROLANDO JAIME | G58: 30 | H58: 2021-07-07 | J58: 0 | K58: OQUENDO | L58: 2021-07-07 | O58: ATE | P58: 38.8
B59: 2021-07-12T12:43:34 | C59: ABR841 | E59: AVILA PERALTA LUIS ANGEL | G59: 30 | H59: 2021-07-07 | J59: 0 | K59: OQUENDO | L59: 2021-07-08 | O59: HUACHO | P59: 288.4
B60: 2021-07-12T12:44:01 | C60: P2M891 | E60: BARRIENTOS GARAY GERMAN | G60: 17.16 | H60: 2021-07-07 | J60: 0 | K60: HUACHIPA | L60: 2021-07-07 | O60: SURCO | P60: 37.9
B61: 2021-07-12T12:44:28 | C61: C1K756 | E61: ZORRILLA REDUCIENDO SANTIAGO FLORENCIO | G61: 30 | H61: 2021-07-07 | J61: 0 | K61: HUACHO | L61: 2021-07-08 | O61: OQUENDO | P61: 124.2
B62: 2021-07-12T12:44:57 | C62: C1K756 | E62: ZORRILLA REDUCIENDO SANTIAGO FLORENCIO | G62: 30 | H62: 2021-07-08 | J62: 0 | K62: OQUENDO | L62: 2021-07-08 | O62: OQUENDO | P62: 32.3
B63: 2021-07-12T12:45:24 | C63: P2M891 | E63: BARRIENTOS GARAY GERMAN | G63: 30 | H63: 2021-07-08 | J63: 0 | K63: OQUENDO | L63: 2021-07-08 | O63: OQUENDO | P63: 32.7
B64: 2021-07-12T12:46:57 | C64: ABR841 | E64: AVILA PERALTA LUIS ANGEL | G64: 30 | H64: 2021-07-08 | J64: 0 | K64: HUACHO | L64: 2021-07-08 | O64: OQUENDO | P64: 288.4
B65: 2021-07-12T12:48:00 | C65: B8W786 | E65: TAIPE SILVERA ROLANDO JAIME | G65: 30 | H65: 2021-07-08 | J65: 0 | K65: HUACHO | L65: 2021-07-09 | O65: PUENTE PIEDRA | P65: 120
B66: 2021-07-12T12:48:29 | C66: B8T720 | E66: MUÑOZ LOPEZ LUIS ALFREDO | G66: 17 | H66: 2021-07-08 | J66: 0 | K66: OQUENDO | L66: 2021-07-08 | O66: OQUENDO | P66: 32.3
B67: 2021-07-12T12:49:28 | C67: B1Q809 | E67: RUDECINDO ROSALES ALEJANDRO | G67: 30 | H67: 2021-07-08 | J67: 0 | K67: OQUENDO | L67: 2021-07-08 | O67: ATE | P67: 38.8
B68: 2021-07-19T13:11:22 | C68: B8T720 | E68: MUÑOZ LOPEZ LUIS ALFREDO | G68: 30 | H68: 2021-07-09 | J68: 0 | K68: HUACHO | L68: 2021-07-09 | O68: PRODUCTORES | P68: 148.2
B69: 2021-07-19T13:16:06 | C69: B1Q809 | E69: RUDECINDO ROSALES ALEJANDRO | G69: 30 | H69: 2021-07-09 | J69: 0 | K69: HUACHO | L69: 2021-07-10 | O69: OQUENDO | P69: 288.4
B70: 2021-07-19T13:17:52 | C70: P2M891 | E70: BARRIENTOS GARAY GERMAN | G70: 25 | H70: 2021-07-09 | J70: 0 | K70: CHORRILLOS | L70: 2021-07-10 | O70: LOS OLIVOS | P70: 29.9
B71: 2021-07-19T13:18:45 | C71: P2M891 | E71: BARRIENTOS GARAY GERMAN | G71: 26 | H71: 2021-07-09 | J71: 0 | K71: HUACHIPA | L71: 2021-07-09 | O71: SJL| | P71: 18.6
B72: 2021-07-19T13:21:31 | C72: C1K756 | E72: ZORRILLA REDUCIENDO SANTIAGO FLORENCIO | G72: 30 | H72: 2021-07-09 | J72: 0 | K72: HUACHO | L72: 2021-07-10 | O72: OQUENDO | P72: 130.3
B73: 2021-07-19T13:23:10 | C73: B8W786 | E73: TAIPE SILVERA ROLANDO JAIME | G73: 29 | H73: 2021-07-09 | J73: 0 | K73: HUACHIPA | L73: 2021-07-10 | O73: BARRANCA | P73: 205.1
B74: 2021-07-19T13:25:28 | C74: B8W786 | E74: TAIPE SILVERA ROLANDO JAIME | G74: 29 | H74: 2021-07-09 | J74: 0 | K74: HUACHIPA | L74: 2021-07-10 | O74: BARRANCA | P74: 205.1
B75: 2021-07-19T13:27:52 | C75: ABR841 | E75: AVILA PERALTA LUIS ANGEL | G75: 28.5 | H75: 2021-07-09 | J75: 0 | K75: HUACHO | L75: 2021-07-10 | O75: OQUENDO | P75: 288.4
B76: 2021-07-19T13:29:38 | C76: ABR841 | E76: AVILA PERALTA LUIS ANGEL | G76: 30 | H76: 2021-07-10 | J76: 0 | K76: OQUENDO | L76: 2021-07-12 | O76: HUACHIPA | P76: 34.3
B77: 2021-07-19T13:32:45 | C77: B1Q809 | E77: RUDECINDO ROSALES ALEJANDRO | G77: 31.2 | H77: 2021-07-10 | J77: 0 | K77: OQUENDO | L77: 2021-07-12 | O77: TRUJILLO | P77: 549.4
B78: 2021-07-19T13:34:55 | C78: P2M891 | E78: BARRIENTOS GARAY GERMAN | G78: 20 | H78: 2021-07-10 | J78: 0 | K78: OQUENDO | L78: 2021-07-12 | O78: LURIN | P78: 58.5
B79: 2021-07-19T13:36:21 | C79: C1K756 | E79: ZORRILLA REDUCIENDO SANTIAGO FLORENCIO | G79: 129.6 | H79: 2021-07-10 | J79: 0 | K79: HUACHO | L79: 2021-07-12 | O79: SMP | P79: 129.6
B80: 2021-07-19T13:38:42 | C80: B8W786 | E80: TAIPE SILVERA ROLANDO JAIME | G80: 31.2 | H80: 2021-07-10 | J80: 0 | K80: HUACHO | L80: 2021-07-11 | O80: PRODUCTORES | P80: 148.2
B81: 2021-07-19T13:40:03 | C81: B8T720 | E81: MUÑOZ LOPEZ LUIS ALFREDO | G81: 31.2 | H81: 2021-07-10 | J81: 0 | K81: HUACHO | L81: 2021-07-12 | O81: OQUENDO | P81: 124.2
B82: 2021-07-20T09:21:29 | C82: B8W786 | E82: TAIPE SILVERA ROLANDO JAIME | G82: 25 | H82: 2021-07-12 | J82: 0 | K82: CHORRILLOS | L82: 2021-07-12 | O82: LOS OLIVOS | P82: 29.9
B83: 2021-07-20T09:22:29 | C83: B8W786 | E83: TAIPE SILVERA ROLANDO JAIME | G83: 30 | H83: 2021-07-12 | J83: 0 | K83: OQUENDO | L83: 2021-07-14 | O83: TRUJILLO | P83: 559.4
B84: 2021-07-20T09:23:35 | C84: C1K756 | E84: ZORRILLA REDUCIENDO SANTIAGO FLORENCIO | G84: 20 | H84: 2021-07-12 | J84: 0 | K84: OQUENDO | L84: 2021-07-13 | O84: CHORRILLOS | P84: 32.4
B85: 2021-07-20T09:24:53 | C85: P2M891 | E85: BARRIENTOS GARAY GERMAN | G85: 25 | H85: 2021-07-12 | J85: 0 | K85: CHORRILLOS | L85: 2021-07-13 | O85: LOS OLIVOS | P85: 29.9
B86: 2021-07-20T09:25:33 | C86: B8T720 | E86: MUÑOZ LOPEZ LUIS ALFREDO | G86: 2 | H86: 2021-07-12 | J86: 0 | K86: CALLAO | L86: 2021-07-12 | O86: CALLAO | P86: 3
B87: 2021-07-20T09:28:26 | C87: B8T720 | E87: MUÑOZ LOPEZ LUIS ALFREDO | G87: 30 | H87: 2021-07-12 | J87: 0 | K87: OQUENDO | L87: 2021-07-13 | O87: PRODUCTORES | P87: 27.3
B88: 2021-07-20T09:32:14 | C88: C1K756 | E88: ZORRILLA REDUCIENDO SANTIAGO FLORENCIO | G88: 30 | H88: 2021-07-13 | J88: 0 | K88: HUACHO | L88: 2021-07-14 | O88: OQUENDO | P88: 130.3
B89: 2021-07-20T09:33:55 | C89: ABR841 | E89: AVILA PERALTA LUIS ANGEL | G89: 25 | H89: 2021-07-13 | J89: 0 | K89: CHORRILLOS | L89: 2021-07-13 | O89: OLIVOS | P89: 29.9
B90: 2021-07-20T09:41:06 | C90: ABR841 | E90: AVILA PERALTA LUIS ANGEL | G90: 30 | H90: 2021-07-14 | J90: 0 | K90: HUACHO | L90: 2021-07-15 | O90: OQUENDO | P90: 288.4
B91: 2021-07-20T09:42:21 | C91: B1Q809 | E91: RUDECINDO ROSALES ALEJANDRO | G91: 28 | H91: 2021-07-14 | J91: 0 | K91: HUACHIPA | L91: 2021-07-15 | O91: HUARAL | P91: 89.8
B92: 2021-07-20T09:43:34 | C92: B8T720 | E92: MUÑOZ LOPEZ LUIS ALFREDO | G92: 30 | H92: 2021-07-14 | J92: 0 | K92: HUACHO | L92: 2021-07-14 | O92: OQUENDO | P92: 124.2
B93: 2021-07-20T09:44:18 | C93: B8T720 | E93: MUÑOZ LOPEZ LUIS ALFREDO | G93: 17 | H93: 2021-07-14 | J93: 0 | K93: OQUENDO | L93: 2021-07-15 | O93: OQUENDO | P93: 0
B94: 2021-07-20T09:46:21 | C94: P2M891 | E94: BARRIENTOS GARAY GERMAN | G94: 27.2 | H94: 2021-07-14 | J94: 0 | K94: HUACHIPA | L94: 2021-07-14 | O94: CALLAO | P94: 27.2
B95: 2021-07-20T09:47:45 | C95: C1K756 | E95: ZORRILLA REDUCIENDO SANTIAGO FLORENCIO | G95: 30 | H95: 2021-07-14 | J95: 0 | K95: OQUENDO | L95: 2021-07-15 | O95: OQUENDO | P95: 32.7
B96: 2021-07-20T09:49:33 | C96: B8T720 | E96: MUÑOZ LOPEZ LUIS ALFREDO | G96: 30 | H96: 2021-07-15 | J96: O | K96: OQUENDO | L96: 2021-07-16 | O96: LURIN | P96: 58.5
B97: 2021-07-20T09:50:34 | C97: B8W786 | E97: TAIPE SILVERA ROLANDO JAIME | G97: 30 | H97: 2021-07-15 | J97: 0 | K97: HUACHO | L97: 2021-07-16 | O97: PUENTE PIEDRA | P97: 119.2
B98: 2021-07-20T09:51:31 | C98: C1K756 | E98: ZORRILLA REDUCIENDO SANTIAGO FLORENCIO | G98: 30 | H98: 2021-07-15 | J98: 0 | K98: OQUENDO | L98: 2021-07-16 | O98: ZAPALLAL | P98: 20.7
B99: 2021-07-20T09:54:28 | C99: ABR841 | E99: AVILA PERALTA LUIS ANGEL | G99: 28 | H99: 2021-07-15 | J99: 0 | K99: HUACHIPA | L99: 2021-07-16 | O99: BARRANCA | P99: 205.1
B100: 2021-07-20T09:56:36 | C100: B1Q809 | E100: RUDECINDO ROSALES ALEJANDRO | G100: 30 | H100: 2021-07-15 | J100: 0 | K100: HUACHO | L100: 2021-07-16 | O100: SMP | P100: 0
B101: 2021-07-20T09:57:31 | C101: P2M891 | E101: BARRIENTOS GARAY GERMAN | G101: 26 | H101: 2021-07-15 | J101: 0 | K101: HUACHIPA | L101: 2021-07-15 | O101: SURCO | P101: 25.1
B102: 2021-07-20T09:58:48 | C102: C1K756 | E102: ZORRILLA REDUCIENDO SANTIAGO FLORENCIO | G102: 30.5 | H102: 2021-07-15 | J102: 0 | K102: OQUENDO | L102: 2021-07-15 | O102: ATE | P102: 36.5
B103: 2021-07-23T13:25:41 | C103: ABR841 | E103: AVILA PERALTA LUIS ANGEL | G103: 30 | H103: 2021-07-16 | J103: 0 | K103: HUACHO | L103: 2021-07-17 | O103: CHINCHA | P103: 342.1
B104: 2021-07-23T13:26:43 | C104: B8W786 | E104: TAIPE SILVERA ROLANDO JAIME | G104: 30 | H104: 2021-07-16 | J104: 0 | K104: HUACHO | L104: 2021-07-17 | O104: V.E.S | P104: 169.3
B105: 2021-07-23T13:27:42 | C105: C1K756 | E105: ZORRILLA REDUCIENDO SANTIAGO FLORENCIO | G105: 30 | H105: 2021-07-16 | J105: 0 | K105: HUACHO | L105: 2121-07-17 | O105: S.M.P | P105: 141.2
B106: 2021-07-23T13:28:46 | C106: P2M891 | E106: BARRIENTOS GARAY GERMAN | G106: 23 | H106: 2021-07-16 | J106: 0 | K106: HUACHIPA | L106: 2021-07-16 | O106: COMAS | P106: 31.6
B107: 2021-07-23T13:29:43 | C107: P2M891 | E107: BARRIENTOS GARAY GERMAN | G107: 30 | H107: 2021-07-16 | J107: 0 | K107: OQUENDO | L107: 2021-07-17 | O107: PRODUCTORES | P107: 27.3
B108: 2021-07-23T13:31:17 | C108: B8T720 | E108: MUÑOZ LOPEZ LUIS ALFREDO | G108: 30 | H108: 2021-07-17 | J108: 0 | K108: HUACHO | L108: 2021-07-19 | O108: S.M.P | P108: 141.2
B109: 2021-07-23T13:33:08 | C109: C1K756 | E109: ZORRILLA REDUCIENDO SANTIAGO FLORENCIO | G109: 30 | H109: 2021-07-19 | J109: 0 | K109: OQUENDO | L109: 2021-07-20 | O109: HUACHO | P109: 130.4
B110: 2021-07-23T13:33:59 | C110: P2M891 | E110: BARRIENTOS GARAY GERMAN | G110: 28 | H110: 2021-07-19 | J110: 0 | K110: PTE. NUEVO | L110: 2021-07-19 | O110: BOCANEGRA | P110: 12.8
B111: 2021-07-23T13:34:51 | C111: B8W786 | E111: TAIPE SILVERA ROLANDO JAIME | G111: 25 | H111: 2021-07-19 | J111: 0 | K111: HUACHIPA | L111: 2021-07-19 | O111: CALLAO | P111: 27.2
B112: 2021-07-23T13:35:37 | C112: B8W786 | E112: TAIPE SILVERA ROLANDO JAIME | G112: 30 | H112: 2021-07-19 | J112: 0 | K112: OQUENDO | L112: 2021-07-20 | O112: HUARMEY | P112: 279.3
B113: 2021-07-23T13:38:54 | C113: P2M891 | E113: BARRIENTOS GARAY GERMAN | G113: 30 | H113: 2021-07-20 | J113: 0 | K113: OQUENDO | L113: 2021-07-20 | O113: OQUENDO| | P113: 32.7
B114: 2021-07-23T13:39:43 | C114: ABR841 | E114: AVILA PERALTA LUIS ANGEL | G114: 30 | H114: 2021-07-20 | J114: 0 | K114: HUACHO | L114: 2021-07-21 | O114: HUACHIPA | P114: 150
B115: 2021-07-23T13:40:39 | C115: C1K756 | E115: ZORRILLA REDUCIENDO SANTIAGO FLORENCIO | G115: 30 | H115: 2021-07-20 | J115: 0 | K115: HUACHO | L115: 2021-07-21 | O115: S.M.P | P115: 141.2
B116: 2021-07-23T13:41:30 | C116: P2M891 | E116: BARRIENTOS GARAY GERMAN | G116: 30 | H116: 2021-07-20 | J116: 0 | K116: OQUENDO | L116: 2021-07-21 | O116: HUACHIPA | P116: 34.1
B117: 2021-07-23T13:43:04 | C117: B8T720 | E117: MUÑOZ LOPEZ LUIS ALFREDO | G117: 30 | H117: 2021-07-21 | J117: 0 | K117: HUACHO | L117: 2021-07-21 | O117: PRODUCTORES | P117: 148.2
B118: 2021-07-23T13:44:09 | C118: F1O746 | E118: VEGA SILVA CARLOS ENRIQUE | G118: 25 | H118: 2021-07-21 | J118: 0 | K118: HUACHIPA | L118: 2021-07-21 | O118: ATE | P118: 4.2
B119: 2021-07-23T13:45:02 | C119: F1O746 | E119: VEGA SILVA CARLOS ENRIQUE | G119: 30 | H119: 2021-07-21 | J119: 0 | K119: OQUENDO | L119: 2021-07-22 | O119: CHORRILLOS | P119: 32.4
B120: 2021-07-23T13:45:47 | C120: F1O746 | E120: VEGA SILVA CARLOS ENRIQUE | G120: 30 | H120: 2021-07-21 | J120: 0 | K120: CHORRILLOS | L120: 2021-07-22 | O120: OQUENDO | P120: 32.4
B121: 2021-07-23T13:46:36 | C121: B8W786 | E121: TAIPE SILVERA ROLANDO JAIME | G121: 30 | H121: 2021-07-21 | J121: 0 | K121: HUACHO | L121: 2021-07-21 | O121: PRODUCTORES | P121: 25
B122: 2021-07-23T13:47:41 | C122: P2M891 | E122: BARRIENTOS GARAY GERMAN | G122: 30 | H122: 2021-07-21 | J122: 0 | K122: OQUENDO | L122: 2021-07-22 | O122: PRODUCTORES | P122: 27.3
B123: 2021-07-24T09:11:33 | C123: B8W786 | E123: TAIPE SILVERA ROLANDO JAIME | G123: 39 | H123: 2021-07-22 | J123: 0 | K123: HUACHO | L123: 2021-07-23 | O123: HUACHIPA | P123: 155
B124: 2021-07-24T09:13:00 | C124: ABR841 | E124: AVILA PERALTA LUIS ANGEL | G124: 30 | H124: 2021-07-22 | J124: 0 | K124: HUACHO | L124: 2021-07-21 | O124: HUARAZ | P124: 266
B125: 2021-07-24T09:14:30 | C125: P2M891 | E125: BARRIENTOS GARAY GERMAN | G125: 25 | H125: 2021-07-22 | J125: 0 | K125: HUACHIPA | L125: 2021-07-22 | O125: SURC0 | P125: 25.1
B126: 2021-07-24T09:15:33 | C126: B8W786 | E126: TAIPE SILVERA ROLANDO JAIME | G126: 25 | H126: 2021-07-22 | J126: 0 | K126: HUACHIPA | L126: 2021-07-22 | O126: COMAS | P126: 31.6
B127: 2021-07-24T09:16:58 | C127: C1K756 | E127: ZORRILLA REDUCIENDO SANTIAGO FLORENCIO | G127: 30 | H127: 2021-07-22 | J127: 0 | K127: HUACHO | L127: 2021-07-23 | O127: PACHACAMAC | P127: 186.6
B128: 2021-07-24T09:20:03 | C128: B8T720 | E128: MUÑOZ LOPEZ LUIS ALFREDO | G128: 30 | H128: 2021-07-22 | J128: 0 | K128: OQUENDO | L128: 2021-07-22 | O128: OQUENDO | P128: 32.7
B129: 2021-07-24T09:21:24 | C129: B8T720 | E129: MUÑOZ LOPEZ LUIS ALFREDO | G129: 30 | H129: 2021-07-22 | J129: 0 | K129: OQUENDO | L129: 2021-07-23 | O129: LURIN,CHORRILLOS | P129: 58.5
B130: 2021-07-24T10:06:54 | C130: B1Q809 | E130: RUDECINDO ROSALES ALEJANDRO | G130: 30 | H130: 2021-07-16 | J130: 0 | K130: OQUENDO | L130: 2021-07-17 | O130: OQUENDO | P130: 32.7
B131: 2021-07-24T10:07:44 | C131: B1Q809 | E131: RUDECINDO ROSALES ALEJANDRO | G131: 30 | H131: 2021-07-17 | J131: 0 | K131: HUACHO | L131: 2021-07-19 | O131: V.E.S | P131: 169.3
B132: 2021-07-24T10:08:42 | C132: B1Q809 | E132: RUDECINDO ROSALES ALEJANDRO | G132: 30 | H132: 2021-07-22 | J132: 0 | K132: OQUENDO | L132: 2021-07-23 | O132: HUACHIPA | P132: 34.1

Sheet Combustible
B1: Fecha de Registro | C1: Fecha de abastecimiento | D1: Placa de vehículo | E1: Conductor | F1: Kilometraje de abastecimiento | G1: Razón Social del grifo | H1: Tipo de documento contable | I1: Número de factura/boleta/ticket | J1: Tipo de combustible | K1: Unidad de negocio | L1: Volumen de combustible abastecido | M1: Medida | N1: Gasto total (Incl. IGV) | O1: Imagen de la factura/boleta/ticket
B2: 2021-07-30T19:12:09 | C2: 2021-06-23 | D2: ABR841 | E2: AVILA PERALTA LUIS ANGEL | F2: 0 | G2: GRIFOS ESPINOZA S.A. | H2: Factura | I2: F109-00116111 | J2: Diesel B5 | L2: 74.13 | M2: Galones | N2: 847.47
B3: 2021-07-30T19:12:15 | C3: 2021-06-23 | D3: F1O746 | E3: VEGA SILVA CARLOS ENRIQUE | F3: 0 | G3: OPERADORES S.A.C. | H3: Factura | I3: F102-00107756 | J3: Diesel B5 | L3: 32.077 | M3: Galones | N3: 338.98
B4: 2021-07-30T19:12:15 | C4: 2021-06-26 | D4: C1K756 | E4: ZORRILLA REDUCIENDO SANTIAGO FLORENCIO | F4: 0 | G4: ESTACION DE SERVICIOS HERCO S.A.C. | H4: Factura | I4: F055-026962 | J4: Diesel B5 | L4: 23.904 | M4: Galones | N4: 254.24
B5: 2021-07-30T19:12:15 | C5: 2021-06-28 | D5: C1K756 | E5: ZORRILLA REDUCIENDO SANTIAGO FLORENCIO | F5: 0 | G5: ETISSA S.A. | H5: Factura | I5: F001-00057887 | J5: Diesel B5 | L5: 145 | M5: Galones | N5: 1634.32
B6: 2021-07-30T19:12:16 | C6: 2021-06-29 | D6: B8T720 | E6: MUÑOZ LOPEZ LUIS ALFREDO | F6: 0 | G6: ESTACION SANTA RITA S.A.C. | H6: Factura | I6: F001-00013031 | J6: Diesel B5 | L6: 147.603 | M6: Galones | N6: 1694.93
B7: 2021-07-30T19:12:16 | C7: 2021-07-05 | D7: ABR841 | E7: AVILA PERALTA LUIS ANGEL | F7: 0 | G7: JE OPERACIONES S.A.C | H7: Factura | I7: F103-00099151 | J7: Diesel B5 | L7: 146.699 | M7: Galones | N7: 1535.36
B8: 2021-07-30T19:12:16 | C8: 2021-06-29 | D8: ABR841 | E8: AVILA PERALTA LUIS ANGEL | F8: 0 | G8: ESTACION PETROGAS CAMPOY S.A.C. | H8: Factura | I8: F420-00000604 | J8: Diesel B5 | L8: 127.821 | M8: Galones | N8: 1436.36
B9: 2021-07-30T19:12:16 | C9: 2021-06-25 | D9: B1Q809 | E9: RUDECINDO ROSALES ALEJANDRO | F9: 0 | G9: ESTACION PETROGAS CAMPOY S.A.C. | H9: Factura | I9: F420-00000605 | J9: Diesel B5 | L9: 151.831 | M9: Galones | N9: 1706.17
B10: 2021-07-30T19:12:16 | C10: 2021-06-19 | D10: B8T720 | E10: MUÑOZ LOPEZ LUIS ALFREDO | F10: 0 | G10: ESTACION PETROGAS CAMPOY S.A.C | H10: Factura | I10: F420-00000606 | J10: Diesel B5 | L10: 97.716 | M10: Galones | N10: 1098.06
B11: 2021-07-30T19:12:17 | C11: 2021-06-21 | D11: B8W786 | E11: TAIPE SILVERA ROLANDO JAIME | F11: 0 | G11: ESTACION PETROGAS CAMPOY S.A.C. | H11: Factura | I11: F420-00000607 | J11: Diesel B5 | L11: 113.295 | M11: Galones | N11: 1273.13
B12: 2021-07-30T19:12:17 | C12: 2021-06-28 | D12: B8W786 | E12: TAIPE SILVERA ROLANDO JAIME | F12: 0 | G12: ESTACION PETROGAS CAMPOY S.A.C. | H12: Factura | I12: F420-00000607 | J12: Diesel B5 | L12: 84.465 | M12: Galones | N12: 949.16
B13: 2021-07-30T19:12:17 | C13: 2021-06-21 | D13: C1K756 | E13: ZORRILLA REDUCIENDO SANTIAGO FLORENCIO | F13: 0 | G13: ESTACION PETROGAS CAMPOY S.A.C. | H13: Factura | I13: F420-00000608 | J13: Diesel B5 | L13: 80.002 | M13: Galones | N13: 899.01
B14: 2021-07-30T19:12:17 | C14: 2021-06-25 | D14: F1O746 | E14: VEGA SILVA CARLOS ENRIQUE | F14: 0 | G14: ESTACION PETROGAS CAMPOY S.A.C. | H14: Factura | I14: F420-00000610 | J14: Diesel B5 | L14: 113.5 | M14: Galones | N14: 1275.43
B15: 2021-07-30T19:12:17 | C15: 2021-06-29 | D15: P2M891 | E15: BARRIENTOS GARAY GERMAN | F15: 0 | G15: ESTACION PETROGAS CAMPOY S.A.C. | H15: Factura | I15: F420-00000612 | J15: Diesel B5 | L15: 102.186 | M15: Galones | N15: 1148.3
B16: 2021-07-30T19:12:18 | C16: 2021-07-05 | D16: ABR841 | E16: AVILA PERALTA LUIS ANGEL | F16: 0 | G16: JE OPERADORES SAC | H16: Factura | I16: F103-00099151 | J16: Diesel B5 | L16: 146.699 | M16: Galones | N16: 1535.36
B17: 2021-07-30T19:12:18 | C17: 2021-07-02 | D17: C1K756 | E17: ZORRILLA REDUCIENDO SANTIAGO FLORENCIO | F17: 0 | G17: SERVICENTRO HUARMEY SAC | H17: Factura | I17: F113-00050281 | J17: Diesel B5 | L17: 112.79 | M17: Galones | N17: 1389.85
B18: 2021-07-30T19:12:18 | C18: 2021-07-09 | D18: B1Q809 | E18: RUDECINDO ROSALES ALEJANDRO | F18: 0 | G18: EMP. DE SERV. Y TRANSP. EL NEGRO EIRL | H18: Factura | I18: FC05-00001131 | J18: Diesel B5 | L18: 43.13444 | M18: Galones | N18: 508.47
B19: 2021-07-30T19:12:18 | C19: 2021-07-09 | D19: C1K756 | E19: ZORRILLA REDUCIENDO SANTIAGO FLORENCIO | F19: 0 | G19: ESTACION DE SERVICIOS HERCO SAC | H19: Factura | I19: F055-028387 | J19: Diesel B5 | L19: 36.927 | M19: Galones | N19: 423.73
B20: 2021-07-30T19:12:18 | C20: 2021-07-13 | D20: C1K756 | E20: ZORRILLA REDUCIENDO SANTIAGO FLORENCIO | F20: 0 | G20: G CELESTE SAC | H20: Factura | I20: F006-016567 | J20: Diesel B5 | L20: 36.153 | M20: Galones | N20: 423.73
B21: 2021-07-30T19:12:19 | C21: 2021-07-13 | D21: C1K756 | E21: ZORRILLA REDUCIENDO SANTIAGO FLORENCIO | F21: 0 | G21: LOS PORTALES | H21: Factura | I21: F002-00075058 | J21: Diesel B5 | L21: 37.481 | M21: Galones | N21: 423.73
B22: 2021-07-30T19:12:19 | C22: 2021-07-12 | D22: F1O746 | E22: VEGA SILVA CARLOS ENRIQUE | F22: 0 | G22: JE OPERADORES SAC | H22: Factura | I22: F102-00110148 | J22: Diesel B5 | L22: 23.148 | M22: Galones | N22: 254.24
B23: 2021-07-30T19:12:19 | C23: 2021-07-13 | D23: B8T720 | E23: MUÑOZ LOPEZ LUIS ALFREDO | F23: 0 | G23: GRIFO SERVITOR SA | H23: Factura | I23: F112-00109348 | J23: Diesel B5 | L23: 145.091 | M23: Galones | N23: 1624.28
B24: 2021-07-30T19:12:19 | C24: 2021-07-14 | D24: B1Q809 | E24: RUDECINDO ROSALES ALEJANDRO | F24: 0 | G24: GRIFOS ESPINOZA S.A. | H24: Factura | I24: F109-00117205 | J24: Diesel B5 | L24: 159.203 | M24: Galones | N24: 1927.97
B25: 2021-07-30T19:12:19 | C25: 2021-07-16 | D25: B8W786 | E25: TAIPE SILVERA ROLANDO JAIME | F25: 0 | G25: ESTACION DE SERVICIOS PASO DE LOS ANDES | H25: Factura | I25: F213-00051929 | J25: Diesel B5 | L25: 35.74 | M25: Galones | N25: 423.73
B26: 2021-07-30T19:12:20 | C26: 2021-07-13 | D26: ABR841 | E26: AVILA PERALTA LUIS ANGEL | F26: 0 | G26: ESTACION PETROGAS CAMPOY S.A.C | H26: Factura | I26: F420-618 | J26: Diesel B5 | L26: 117.115 | M26: Galones | N26: 1371.64
B27: 2021-07-30T19:12:20 | C27: 2021-07-07 | D27: P2M891 | E27: BARRIENTOS GARAY GERMAN | F27: 0 | G27: ESTACION PETROGAS CAMPOY S.A.C | H27: Factura | I27: F420-623 | J27: Diesel B5 | L27: 56.196 | M27: Galones | N27: 618.64
B28: 2021-07-30T19:12:20 | C28: 2021-07-13 | D28: P2M891 | E28: BARRIENTOS GARAY GERMAN | F28: 0 | G28: ESTACION PETROGAS CAMPOY S.A.C | H28: Factura | I28: F420-623 | J28: Diesel B5 | L28: 49.422 | M28: Galones | N28: 578.82
B29: 2021-07-30T19:12:20 | C29: 2021-07-07 | D29: B8W786 | E29: TAIPE SILVERA ROLANDO JAIME | F29: 0 | G29: ESTACION PETROGAS CAMPOY S.A.C | H29: Factura | I29: F420-620 | J29: Diesel B5 | L29: 99.895 | M29: Galones | N29: 1099.69
B30: 2021-07-30T19:12:20 | C30: 2021-07-11 | D30: B8W786 | E30: TAIPE SILVERA ROLANDO JAIME | F30: 0 | G30: ESTACION PETROGAS CAMPOY S.A.C | H30: Factura | I30: F420-620 | J30: Diesel B5 | L30: 84.79 | M30: Galones | N30: 993.05
B31: 2021-07-30T19:12:21 | C31: 2021-07-10 | D31: B1Q809 | E31: RUDECINDO ROSALES ALEJANDRO | F31: 0 | G31: ESTACION PETROGAS CAMPOY S.A.C | H31: Factura | I31: F420-619 | J31: Diesel B5 | L31: 147.251 | M31: Galones | N31: 1724.58
B32: 2021-07-30T19:12:21 | C32: 2021-07-23 | D32: B1Q809 | E32: RUDECINDO ROSALES ALEJANDRO | F32: 0 | G32: GRIFO ESPINOZA S.A | H32: Factura | I32: F109-00117643 | J32: Diesel B5 | L32: 166 | M32: Galones | N32: 2010.29
B33: 2021-07-30T19:12:21 | C33: 2021-07-19 | D33: C1K756 | E33: ZORRILLA REDUCIENDO SANTIAGO FLORENCIO | F33: 0 | G33: EMPRESA GRUPO QUINTO S.A | H33: Factura | I33: F101-0016716 | J33: Diesel B5 | L33: 13.1815 | M33: Galones | N33: 139.83
B34: 2021-07-30T19:12:22 | C34: 2021-07-16 | D34: C1K756 | E34: ZORRILLA REDUCIENDO SANTIAGO FLORENCIO | F34: 0 | G34: COETI S.A | H34: Factura | I34: F69P-00002020 | J34: Diesel B5 | L34: 35.74 | M34: Galones | N34: 423.73

Sheet Indicadores

Sheet Hoja2 (hidden)
B3: Etiquetas de fila | C3: Suma de Gasto total (Incl. IGV)
B4: Diesel B5 | C4: 33986.28
B5: Total general | C5: 33986.28 | J5: Diesel B5 | K5: =GETPIVOTDATA("[Measures].[Suma de Gasto total (Incl. IGV)]",$B$3,"[TablaCombustible].[Tipo de combustible]","[TablaCombustible].[Tipo de combustible].&[Diesel B5]") -> 33986.28
J6: Urea | K6: =IFERROR(VLOOKUP(J6,B4:C5,2,0),0) -> 0
J7: Total | K7: =SUM(K5:K6) -> 33986.28
B13: Tipo de combustible | C13: Medida | D13: Suma de Volumen de combustible abastecido
B14: Diesel B5 | C14: Galones | D14: 2986.18594
B15: Total general | D15: 2986.18594
B20: Placa de vehículo | C20: Suma de Volumen de combustible abastecido
B21: ABR841 | C21: 612.464
B22: B1Q809 | C22: 667.41944
B23: B8T720 | C23: 390.41
B24: B8W786 | C24: 418.185
B25: C1K756 | C25: 521.1785
B26: F1O746 | C26: 168.725
B27: P2M891 | C27: 207.804
B28: Total general | C28: 2986.18594
K30: Recorrido | L30: Volúmen de combustible abastecido | M30: Gasto | N30: Km/gl | O30: Soles/km
J31: ABR841 | K31: =IFERROR(VLOOKUP(J31,$B$54:$C$60,2,0),0) -> 3646.2 | L31: =IFERROR(VLOOKUP(J31,$B$21:$C$27,2,0),0) -> 612.464 | M31: =IFERROR(VLOOKUP(J31,$B$37:$C$43,2,0),0)*1.18 -> 7936.9042 | N31: =ROUND(K31/L31,2) -> 5.95 | O31: =M31/K31 -> 2.176760518 | Q31: =+M31/L31 -> 12.95897261
J32: B1Q809 | K32: 2249.3 | L32: =IFERROR(VLOOKUP(J32,$B$21:$C$27,2,0),0) -> 667.41944 | M32: =IFERROR(VLOOKUP(J32,$B$37:$C$43,2,0),0)*1.18 -> 9295.4264 | N32: =ROUND(K32/L32,2) -> 3.37 | O32: =M32/K32 -> 4.132586316 | Q32: =+M32/L32 -> 13.92741332
J33: B8T720 | K33: 2059.1 | L33: 390.41 | M33: 5212.3786 | N33: 5.27 | O33: 2.531386819 | Q33: 13.35103763
J34: B8W786 | K34: 3020.6 | L34: 418.185 | M34: 5591.7368 | N34: 7.22 | O34: 1.851200689 | Q34: 13.37144278
J35: C1K756 | K35: 2354.9 | L35: 521.1785 | M35: =IFERROR(VLOOKUP(J35,$B$37:$C$43,2,0),0)*1.18 -> 7094.3606 | N35: 4.52 | O35: 3.012595269 | Q35: 13.61215131
B36: Placa de vehículo | C36: Suma de Gasto total (Incl. IGV) | J36: F1O746 | K36: =IFERROR(VLOOKUP(J36,$B$54:$C$60,2,0),0) -> 711.9 | L36: 168.725 | M36: 2205.007 | N36: 4.22 | O36: 3.097354966 | Q36: 13.06864424
B37: ABR841 | C37: 6726.19 | J37: P2M891 | K37: =IFERROR(VLOOKUP(J37,$B$54:$C$60,2,0),0) -> 819.2 | L37: 207.804 | M37: 2767.9968 | N37: 3.94 | O37: =M37/K37 -> 3.378902344 | Q37: 13.32022868
B38: B1Q809 | C38: 7877.48 | J38: Total | K38: =SUM(K31:K37) -> 14861.2 | L38: =SUM(L31:L37) -> 2986.18594 | M38: =SUM(M31:M37) -> 40103.8104 | N38: 4.98 | O38: 2.698558017
B39: B8T720 | C39: 4417.27
B40: B8W786 | C40: 4738.76
B41: C1K756 | C41: 6012.17 | P41: Soles/Ton
B42: F1O746 | C42: 1868.65 | M42: Km/gl | N42: Soles/km | O42: Soles/gl
B43: P2M891 | C43: 2345.76 | L43: Izquierda | M43: =N38 -> 4.98 | N43: =O38 -> 2.698558017 | O43: =M38/L38 -> 13.42977671
B44: Total general | C44: 33986.28 | L44: Puntero | M44: 0.3 | N44: 0.1 | O44: 0.3
L45: Derecha | M45: =$M$51-M43-M44 -> 24.72 | N45: =$N$51-N43-N44 -> 7.201441983 | O45: =$M$51-O43-O44 -> 16.27022329
L47: Segmento 1 | M47: 5 | N47: =5/3 -> 1.666666667
L48: Segmento 2 | M48: 5 | N48: =+N47 -> 1.666666667
L49: Segmento 3 | M49: 5 | N49: =+N48 -> 1.666666667
L50: Segmento 4 | M50: 15 | N50: =SUM(N47:N49) -> 5
M51: =+M50+M49+M48+M47 -> 30 | N51: =+N50+N49+N48+N47 -> 10
B53: Placa de vehículo | C53: Suma de Recorrido
B54: ABR841 | C54: 3646.2
B55: B1Q809 | C55: 2249.3
B56: B8T720 | C56: 2059.1
B57: B8W786 | C57: 3020.6
B58: C1K756 | C58: 2354.9
B59: F1O746 | C59: 711.9
B60: P2M891 | C60: 819.2
B61: Total general | C61: 14861.2
